fUSD/lending_fUSD_20241221
["ID","MTS","AMOUNT","RATE_DAILY","PERIOD"]
[346164954,1734762655318,-500.0,0.00021668,2]
[346164955,1734762655326,-1064.2,0.00021668,2]
[346164956,1734762655335,-2196.67,0.00021668,2]
[346164957,1734762655343,-500.0,0.00021668,2]
[346164958,1734762655352,-500.0,0.00021668,2]
[346164959,1734762655361,-500.0,0.00021668,2]
[346164960,1734762655370,-597.67299024,0.00021668,2]
[346164961,1734762655379,-1196.09,0.00021668,2]
[346164962,1734762655388,-1921.07,0.00021668,2]
[346164963,1734762655397,-500.0,0.00021668,2]
[346164964,1734762655405,-500.0,0.00021668,2]
[346164965,1734762655414,-796.27,0.00021668,2]
[346164966,1734762655423,-4024.68,0.00021668,2]
[346164967,1734762655431,-500.0,0.00021668,2]
[346164968,1734762655440,-508.35740546,0.00021668,2]
[346164969,1734762655449,-500.0,0.00021668,2]
[346164970,1734762655458,-500.0,0.00021668,2]
[346164971,1734762655467,-500.0,0.00021668,2]
[346164972,1734762655476,-2898.52,0.00021668,2]
[346164973,1734762655485,-500.0,0.00021668,2]
[346164974,1734762655495,-500.0,0.00021668,2]
[346164975,1734762655504,-500.0,0.00021668,2]
[346164976,1734762655513,-500.0,0.00021668,2]
[346164977,1734762655524,-500.0,0.00021668,2]
[346164978,1734762655533,-5761.58,0.00021668,2]
[346164979,1734762655543,-606.13413441,0.00021668,2]
[346164980,1734762655551,-510.02,0.00021668,2]
[346164981,1734762655561,-500.0,0.00021668,2]
[346164982,1734762655570,-569.51,0.00021668,2]
[346164983,1734762655580,-500.0,0.00021668,2]
[346164984,1734762655590,-500.0,0.00021668,2]
[346164985,1734762655599,-599.96,0.00021668,2]
[346164986,1734762655609,-500.0,0.00021668,2]
[346164987,1734762655618,-763.04,0.00021668,2]
[346164988,1734762655627,-192.24294127,0.00021668,2]
[346164989,1734762655637,-2296.3,0.00021668,2]
[346164990,1734762655646,-500.0,0.00021668,2]
[346164991,1734762655656,-528.37,0.00021668,2]
[346164992,1734762655665,-500.0,0.00021668,2]
[346164993,1734762655675,-500.0,0.00021668,2]
[346164994,1734762655684,-705.86,0.00021668,2]
[346164995,1734762655693,-500.0,0.00021668,2]
[346164996,1734762655703,-500.0,0.00021668,2]
[346164997,1734762655712,-500.0,0.00021668,2]
[346164998,1734762655722,-500.0,0.00021668,2]
[346164999,1734762655732,-949.95,0.00021668,2]
[346165000,1734762655741,-500.0,0.00021668,2]
[346165001,1734762655750,-500.0,0.00021668,2]
[346165002,1734762655760,-500.0,0.00021668,2]
[346165003,1734762655770,-500.0,0.00021668,2]
[346165004,1734762655782,-500.0,0.00021668,2]
[346165005,1734762655792,-500.0,0.00021668,2]
[346165006,1734762655802,-500.0,0.00021668,2]
[346165007,1734762655812,-500.0,0.00021668,2]
[346165008,1734762655825,-500.0,0.00021669,2]
[346165009,1734762655836,-500.0,0.00021669,2]
[346165010,1734762655846,-500.0,0.00021669,2]
[346165011,1734762655856,-503.965308,0.00021669,2]
[346165012,1734762655866,-184.83037098,0.00021669,2]
[346165013,1734762655877,-500.0,0.00021669,2]
[346165014,1734762655889,-500.20868162,0.00021669,2]
[346165015,1734762655899,-500.0,0.00021669,2]
[346165016,1734762655909,-502.82444635,0.00021669,2]
[346165017,1734762655919,-500.0,0.00021669,2]
[346165018,1734762655929,-500.0,0.00021669,2]
[346165019,1734762655939,-807.82,0.00021669,2]
[346165020,1734762655948,-500.0,0.00021669,2]
[346165021,1734762655958,-500.0,0.00021669,2]
[346165022,1734762655970,-500.0,0.00021669,2]
[346165023,1734762655980,-500.0,0.00021669,2]
[346165024,1734762655989,-510.15649657,0.00021669,2]
[346165025,1734762655999,-500.0,0.00021669,2]
[346165026,1734762656009,-500.0,0.00021669,2]
[346165027,1734762656019,-500.0,0.00021669,2]
[346165028,1734762656029,-539.8,0.00021669,2]
[346165029,1734762656039,-505.72458335,0.00021669,2]
[346165030,1734762656049,-558.08580562,0.00021669,2]
[346165031,1734762656058,-500.0,0.00021669,2]
[346165032,1734762656068,-500.0,0.00021669,2]
[346165033,1734762656078,-500.0,0.00021669,2]
[346165034,1734762656088,-164.66316494,0.00021669,2]
[346165035,1734762656098,-500.0,0.00021669,2]
[346165036,1734762656108,-500.0,0.00021669,2]
[346165037,1734762656119,-500.0,0.00021669,2]
[346165038,1734762656128,-500.0,0.00021669,2]
[346165039,1734762656138,-500.0,0.00021669,2]
[346165040,1734762656147,-500.0,0.00021669,2]
[346165041,1734762656157,-391.71573673,0.00021669,2]
[346165042,1734762656167,-500.0,0.00021669,2]
[346165043,1734762656181,-500.0,0.00021669,2]
[346165044,1734762656192,-500.0,0.00021669,2]
[346165045,1734762656201,-500.0,0.00021669,2]
[346165046,1734762656211,-500.0,0.00021669,2]
[346165047,1734762656221,-500.0,0.00021669,2]
[346165048,1734762656232,-500.0,0.00021669,2]
[346165049,1734762656242,-500.0,0.00021669,2]
[346165050,1734762656251,-522.23566969,0.00021669,2]
[346165051,1734762656261,-500.0,0.00021669,2]
[346165052,1734762656271,-500.0,0.00021669,2]
[346165053,1734762656281,-500.0,0.00021669,2]
[346165054,1734762656291,-500.0,0.00021669,2]
[346165055,1734762656301,-500.0,0.00021669,2]
[346165056,1734762656310,-678.61,0.00021669,2]
[346165057,1734762656320,-500.0,0.00021669,2]
[346165058,1734762656330,-207.51337143,0.00021669,2]
[346165059,1734762656339,-500.0,0.00021669,2]
[346165060,1734762656349,-500.0,0.00021669,2]
[346165061,1734762656359,-500.0,0.00021669,2]
[346165062,1734762656368,-500.0,0.00021669,2]
[346165063,1734762656378,-500.0,0.00021669,2]
[346165064,1734762656388,-500.0,0.00021669,2]
[346165065,1734762656397,-500.0,0.00021669,2]
[346165066,1734762656408,-500.0,0.00021669,2]
[346165067,1734762656417,-500.0,0.00021669,2]
[346165068,1734762656428,-500.0,0.00021669,2]
[346165069,1734762656437,-500.0,0.00021669,2]
[346165070,1734762656447,-500.0,0.00021669,2]
[346165071,1734762656456,-500.0,0.00021669,2]
[346165072,1734762656466,-500.0,0.00021669,2]
[346165073,1734762656475,-520.11,0.00021669,2]
[346165074,1734762656485,-791.11,0.00021669,2]
[346165075,1734762656495,-500.0,0.00021669,2]
[346165076,1734762656505,-512.01892478,0.00021669,2]
[346165077,1734762656515,-500.0,0.00021669,2]
[346165078,1734762656525,-500.0,0.00021669,2]
[346165079,1734762656534,-500.0,0.00021669,2]
[346165080,1734762656544,-500.0,0.00021669,2]
[346165081,1734762656554,-500.0,0.00021669,2]
[346165082,1734762656564,-500.0,0.00021669,2]
[346165083,1734762656574,-500.0,0.00021669,2]
[346165084,1734762656585,-500.0,0.00021669,2]
[346165085,1734762656595,-500.0,0.00021669,2]
[346165086,1734762656604,-500.0,0.00021669,2]
[346165087,1734762656614,-500.0,0.00021669,2]
[346165088,1734762656624,-500.0,0.00021669,2]
[346165089,1734762656637,-500.0,0.00021669,2]
[346165090,1734762656653,-500.0,0.00021669,2]
[346165091,1734762656663,-500.0,0.00021669,2]
[346165092,1734762656673,-501.94945834,0.00021669,2]
[346165093,1734762656684,-500.0,0.00021669,2]
[346165094,1734762656695,-828.79,0.00021669,2]
[346165095,1734762656706,-500.0,0.00021669,2]
[346165096,1734762656715,-500.0,0.00021669,2]
[346165097,1734762656726,-500.0,0.00021669,2]
[346165098,1734762656736,-500.0,0.00021669,2]
[346165099,1734762656747,-500.0,0.00021669,2]
[346165100,1734762656757,-685.6,0.00021669,2]
[346165101,1734762656767,-500.0,0.00021669,2]
[346165102,1734762656778,-840.52,0.00021669,2]
[346165103,1734762656787,-709.51,0.00021669,2]
[346165104,1734762656797,-500.0,0.00021669,2]
[346165105,1734762656806,-500.0,0.00021669,2]
[346165106,1734762656816,-500.0,0.00021669,2]
[346165107,1734762656826,-500.0,0.00021669,2]
[346165108,1734762656836,-500.0,0.00021669,2]
[346165109,1734762656846,-500.0,0.00021669,2]
[346165110,1734762656856,-500.0,0.00021669,2]
[346165111,1734762656867,-701.1,0.00021669,2]
[346165112,1734762656878,-500.0,0.00021669,2]
[346165113,1734762656892,-500.0,0.00021669,2]
[346165114,1734762656902,-500.0,0.00021669,2]
[346165115,1734762656912,-725.66,0.00021669,2]
[346165116,1734762656923,-500.0,0.00021669,2]
[346165117,1734762656933,-500.0,0.00021669,2]
[346165118,1734762656943,-500.0,0.00021669,2]
[346165119,1734762656953,-1143.13,0.00021669,2]
[346165120,1734762656964,-500.0,0.00021669,2]
[346165121,1734762656974,-551.49,0.00021669,2]
[346165122,1734762656984,-567.45,0.00021669,2]
[346165123,1734762656994,-500.0,0.00021669,2]
[346165124,1734762657005,-500.0,0.00021669,2]
[346165125,1734762657015,-500.0,0.00021669,2]
[346165126,1734762657026,-603.15,0.00021669,2]
[346165127,1734762657036,-678.78,0.00021669,2]
[346165128,1734762657046,-500.0,0.00021669,2]
[346165129,1734762657056,-500.0,0.00021669,2]
[346165130,1734762657065,-500.0,0.00021669,2]
[346165131,1734762657075,-841.91,0.00021669,2]
[346165132,1734762657085,-649.52,0.00021669,2]
[346165133,1734762657095,-500.0,0.00021669,2]
[346165134,1734762657104,-500.0,0.00021669,2]
[346165135,1734762657114,-500.0,0.00021669,2]
[346165136,1734762657124,-502.93,0.00021669,2]
[346165137,1734762657134,-656.01,0.00021669,2]
[346165138,1734762657144,-500.0,0.00021669,2]
[346165139,1734762657154,-500.0,0.00021669,2]
[346165140,1734762657164,-500.0,0.00021669,2]
[346165141,1734762657174,-549.85184098,0.00021669,2]
[346165142,1734762657184,-500.0,0.00021669,2]
[346165143,1734762657194,-642.19730219,0.00021669,2]
[346165144,1734762657204,-685.45,0.00021669,2]
[346165145,1734762657214,-500.0,0.00021669,2]
[346165146,1734762657224,-500.0,0.00021669,2]
[346165147,1734762657234,-500.0,0.00021669,2]
[346165148,1734762657244,-500.0,0.00021669,2]
[346165149,1734762657254,-535.87,0.00021669,2]
[346165150,1734762657264,-500.0,0.00021669,2]
[346165151,1734762657274,-500.0,0.00021669,2]
[346165152,1734762657284,-500.0,0.00021669,2]
[346165153,1734762657295,-654.05,0.00021669,2]
[346165154,1734762657305,-506.24018012,0.00021669,2]
[346165155,1734762657314,-500.0,0.00021669,2]
[346165156,1734762657324,-500.0,0.00021669,2]
[346165157,1734762657334,-500.0,0.00021669,2]
[346165158,1734762657344,-605.08,0.00021669,2]
[346165159,1734762657354,-686.75,0.00021669,2]
[346165160,1734762657364,-5000.0,0.00021669,2]
[346165161,1734762657374,-500.0,0.00021669,2]
[346165162,1734762657384,-500.0,0.00021669,2]
[346165163,1734762657394,-500.0,0.00021669,2]
[346165164,1734762657404,-500.0,0.00021669,2]
[346165165,1734762657414,-500.0,0.00021669,2]
[346165166,1734762657425,-510.29346945,0.00021669,2]
[346165167,1734762657435,-752.24,0.00021669,2]
[346165168,1734762657445,-500.0,0.00021669,2]
[346165169,1734762657455,-500.0,0.00021669,2]
[346165170,1734762657465,-838.97,0.00021669,2]
[346165171,1734762657474,-500.0,0.00021669,2]
[346165172,1734762657484,-584.97,0.00021669,2]
[346165173,1734762657493,-204.20942253,0.00021669,2]
[346165174,1734762657503,-862.22,0.00021669,2]
[346165175,1734762657513,-500.0,0.00021669,2]
[346165176,1734762657523,-500.0,0.00021669,2]
[346165177,1734762657534,-606.37177322,0.00021669,2]
[346165178,1734762657544,-500.0,0.00021669,2]
[346165179,1734762657554,-500.0,0.00021669,2]
[346165180,1734762657565,-500.0,0.00021669,2]
[346165181,1734762657575,-1083.25,0.00021669,2]
[346165182,1734762657585,-500.0,0.00021669,2]
[346165183,1734762657595,-500.0,0.00021669,2]
[346165184,1734762657605,-1191.44,0.00021669,2]
[346165185,1734762657615,-500.0,0.00021669,2]
[346165186,1734762657625,-500.0,0.00021669,2]
[346165187,1734762657635,-500.0,0.00021669,2]
[346165188,1734762657645,-500.0,0.00021669,2]
[346165189,1734762657656,-500.0,0.00021669,2]
[346165190,1734762657677,-500.0,0.00021669,2]
[346165191,1734762657690,-500.0,0.00021669,2]
[346165192,1734762657700,-644.53,0.00021669,2]
[346165193,1734762657711,-938.83,0.00021669,2]
[346165194,1734762657722,-832.26,0.00021669,2]
[346165195,1734762657733,-500.0,0.00021669,2]
[346165196,1734762657744,-500.0,0.00021669,2]
[346165197,1734762657754,-500.0,0.00021669,2]
[346165198,1734762657766,-1185.23,0.00021669,2]
[346165199,1734762657776,-1190.69,0.00021669,2]
[346165200,1734762657787,-873.43,0.00021669,2]
[346165201,1734762657798,-799.54,0.00021669,2]
[346165202,1734762657808,-1276.64,0.00021669,2]
[346165203,1734762657819,-887.53,0.00021669,2]
[346165204,1734762657830,-631.09,0.00021669,2]
[346165205,1734762657840,-500.0,0.00021669,2]
[346165206,1734762657851,-1335.02,0.00021669,2]
[346165207,1734762657861,-970.43,0.00021669,2]
[346165208,1734762657872,-1403.65,0.00021669,2]
[346165209,1734762657883,-500.0,0.00021669,2]
[346165210,1734762657895,-517.39,0.0002167,2]
[346165211,1734762657906,-500.0,0.0002167,2]
[346165212,1734762657916,-500.0,0.0002167,2]
[346165213,1734762657929,-500.0,0.0002167,2]
[346165214,1734762657939,-500.0,0.0002167,2]
[346165215,1734762657951,-853.87,0.0002167,2]
[346165216,1734762657962,-616.56,0.0002167,2]
[346165217,1734762657974,-500.0,0.0002167,2]
[346165218,1734762658235,-500.0,0.0002167,2]
[346165219,1734762658246,-500.0,0.0002167,2]
[346165220,1734762658256,-500.0,0.0002167,2]
[346165221,1734762658266,-500.0,0.0002167,2]
[346165222,1734762658277,-500.0,0.00021691,2]
[346165223,1734762658287,-770.21,0.00021697,2]
[346165224,1734762658297,-1005.1345,0.00021699,2]
[346165225,1734762658307,-7231.29127318,0.000217,2]
[346165226,1734762658316,-1966.0,0.000217,2]
[346165227,1734762658326,-565.0,0.00021707,2]
[346165228,1734762658336,-633.0,0.00021707,2]
[346165229,1734762658346,-150.0,0.00021707,2]
[346165230,1734762658355,-1898.0,0.00021707,2]
[346165231,1734762658365,-3769.0,0.00021707,2]
[346165232,1734762658375,-818.0,0.00021707,2]
[346165233,1734762658384,-925.0,0.00021707,2]
[346165234,1734762658394,-1255.0,0.00021707,2]
[346165235,1734762658403,-3681.0,0.00021707,2]
[346165236,1734762658413,-536.0,0.00021707,2]
[346165237,1734762658422,-444.084,0.00021707,2]
[346165238,1734762658431,-150.892,0.00021707,2]
[346165239,1734762658441,-2010.0,0.00021707,2]
[346165240,1734762658450,-3886.0,0.00021707,2]
[346165241,1734762658459,-637.294,0.00021707,2]
[346165242,1734762658470,-293.681,0.00021707,2]
[346165243,1734762658479,-13754.0,0.00021707,2]
[346165244,1734762658489,-900.0,0.0002171,2]
[346165245,1734762658499,-500.0,0.0002171,2]
[346165246,1734762658508,-299342.48370156,0.00021742,2]
[346165247,1734762658518,-299.99,0.00021757,7]
[346165248,1734762658528,-9999.99,0.00021757,2]
[346165249,1734762658539,-1101.52,0.00021757,2]
[346165250,1734762658552,-150.99,0.00021757,2]
[346165251,1734762658561,-150.99,0.00021757,2]
[346165252,1734762658571,-9999.99,0.00021757,2]
[346165253,1734762658581,-999.99,0.00021757,2]
[346165254,1734762658591,-5861.44400006,0.0002178,2]
[346165255,1734762658601,-107068.6271043,0.0002178,2]
[346165256,1734762658611,-2387.70607,0.0002178,2]
[346165257,1734762658621,-150.0,0.00021794,2]
[346165258,1734762658631,-2094113.71169933,0.000218,3]
[346165259,1734762658640,-65338.70991189,0.000218,2]
[346165260,1734762658650,-205088.78853627,0.000218,2]
[346165261,1734762658660,-300.0,0.00021808,2]
[346165262,1734762658671,-151.0,0.00021812,2]
[346165263,1734762658680,-1500.0,0.00021835,2]
[346165264,1734762658692,-770.39,0.00021838,2]
[346165265,1734762658702,-436.91,0.00021838,2]
[346165266,1734762658712,-436.91,0.00021838,2]
[346165267,1734762658722,-770.39,0.00021838,2]
[346165268,1734762658732,-436.91,0.00021838,2]
[346165269,1734762658741,-770.39,0.00021838,2]
[346165270,1734762658751,-436.91,0.00021838,2]
[346165271,1734762658760,-770.39,0.00021838,2]
[346165272,1734762658770,-436.91,0.00021838,2]
[346165273,1734762658781,-645.79,0.00021838,2]
[346165274,1734762658791,-1500.0,0.00021843,2]
[346165275,1734762658801,-150.0,0.00021863,2]
[346165276,1734762658811,-300.0,0.00021871,2]
[346165277,1734762658821,-373.92977194,0.00021873,2]
[346165278,1734762658830,-500.0,0.00021873,2]
[346165279,1734762658840,-1500.0,0.00021877,2]
[346165280,1734762658849,-150.0,0.0002189,2]
[346165281,1734762658859,-472.58001437,0.00021899,2]
[346165282,1734762658868,-10850.80851122,0.00021899,3]
[346165283,1734762658878,-6178.1253,0.000219,2]
[346165284,1734762658891,-1607123.07468346,0.000219,2]
[346165285,1734762658900,-265.87,0.000219,2]
[346165286,1734762658910,-199.40698209,0.000219,2]
[346165287,1734762658920,-151.0,0.000219,2]
[346165288,1734762658931,-500.0,0.00021917,2]
[346165289,1734762658941,-716.68,0.00021917,2]
[346165290,1734762658950,-716.68,0.00021917,2]
[346165291,1734762658961,-1043.74132836,0.00021917,2]
[346165292,1734762658971,-3696.52,0.00021917,2]
[346165293,1734762658980,-3696.52,0.00021917,2]
[346165294,1734762658990,-1079.97,0.00021917,2]
[346165295,1734762658999,-151.00422713,0.00021917,2]
[346165296,1734762659009,-1224.45,0.00021917,2]
[346165297,1734762659019,-2176.47,0.00021917,2]
[346165298,1734762659028,-943.01,0.00021917,2]
[346165299,1734762659038,-1534.27,0.00021917,2]
[346165300,1734762659048,-3068.89,0.00021917,2]
[346165301,1734762659058,-2229.29,0.00021917,2]
[346165302,1734762659068,-1660.81,0.00021917,2]
[346165303,1734762659078,-2717.75,0.00021917,2]
[346165304,1734762659088,-2210.95,0.00021917,2]
[346165305,1734762659098,-1874.61,0.00021917,2]
[346165306,1734762659107,-500.0,0.00021917,2]
[346165307,1734762659117,-3498.34,0.00021917,2]
[346165308,1734762659126,-1932.17,0.00021917,2]
[346165309,1734762659135,-500.0,0.00021917,2]
[346165310,1734762659145,-1354.83,0.00021917,2]
[346165311,1734762659154,-500.0,0.00021917,2]
[346165312,1734762659164,-10318.63,0.00021917,2]
[346165313,1734762659174,-565.37,0.00021917,2]
[346165314,1734762659184,-500.0,0.00021917,2]
[346165315,1734762659194,-1118.69,0.00021917,2]
[346165316,1734762659204,-1119.59,0.00021917,2]
[346165317,1734762659213,-500.0,0.00021941,2]
[346165318,1734762659224,-1129.95,0.00021941,2]
[346165319,1734762659234,-945.4,0.00021941,2]
[346165320,1734762659244,-716.68,0.00021941,2]
[346165321,1734762659254,-505.7,0.00021941,2]
[346165322,1734762659263,-509.61640796,0.00021941,2]
[346165323,1734762659273,-878.2,0.00021941,2]
[346165324,1734762659285,-500.0,0.00021941,2]
[346165325,1734762659295,-500.0,0.00021941,2]
[346165326,1734762659305,-500.0,0.00021941,2]
[346165327,1734762659315,-500.0,0.00021941,2]
[346165328,1734762659325,-798.65,0.00021941,2]
[346165329,1734762659334,-500.0,0.00021941,2]
[346165330,1734762659344,-651.53,0.00021941,2]
[346165331,1734762659354,-825.6,0.00021941,2]
[346165332,1734762659363,-533.53,0.00021941,2]
[346165333,1734762659374,-500.0,0.00021941,2]
[346165334,1734762659383,-500.0,0.00021941,2]
[346165335,1734762659394,-500.0,0.00021941,2]
[346165336,1734762659404,-661.88,0.00021941,2]
[346165337,1734762659413,-640.6,0.00021941,2]
[346165338,1734762659424,-500.0,0.00021941,2]
[346165339,1734762659434,-500.0,0.00021941,2]
[346165340,1734762659443,-500.0,0.00021941,2]
[346165341,1734762659453,-500.0,0.00021941,2]
[346165342,1734762659463,-778.66,0.00021941,2]
[346165343,1734762659473,-500.0,0.00021941,2]
[346165344,1734762659483,-528.37151413,0.00021941,2]
[346165345,1734762659493,-725.75,0.00021941,2]
[346165346,1734762659502,-500.0,0.00021941,2]
[346165347,1734762659512,-500.0,0.00021941,2]
[346165348,1734762659522,-500.0,0.00021941,2]
[346165349,1734762659533,-785.03,0.00021941,2]
[346165350,1734762659543,-500.0,0.00021941,2]
[346165351,1734762659552,-264.80014555,0.00021941,2]
[346165352,1734762659562,-555.17,0.00021941,2]
[346165353,1734762659572,-500.0,0.00021941,2]
[346165354,1734762659582,-530.93,0.00021941,2]
[346165355,1734762659593,-571.64,0.00021941,2]
[346165356,1734762659602,-824.95,0.00021941,2]
[346165357,1734762659612,-1154.21,0.00021941,2]
[346165358,1734762659621,-505.82,0.00021941,2]
[346165359,1734762659631,-641.5,0.00021941,2]
[346165360,1734762659641,-500.0,0.00021941,2]
[346165361,1734762659650,-500.0,0.00021941,2]
[346165362,1734762659659,-759.47,0.00021941,2]
[346165363,1734762659672,-500.0,0.00021941,2]
[346165364,1734762659681,-719.01,0.00021941,2]
[346165365,1734762659691,-500.0,0.00021941,2]
[346165366,1734762659700,-559.19,0.00021941,2]
[346165367,1734762659710,-643.01,0.00021941,2]
[346165368,1734762659719,-500.0,0.00021941,2]
[346165369,1734762659729,-500.0,0.00021941,2]
[346165370,1734762659738,-500.0,0.00021941,2]
[346165371,1734762659747,-531.7,0.00021941,2]
[346165372,1734762659757,-595.1,0.00021941,2]
[346165373,1734762659766,-500.0,0.00021941,2]
[346165374,1734762659776,-728.88,0.00021941,2]
[346165375,1734762659786,-500.0,0.00021941,2]
[346165376,1734762659796,-500.0,0.00021941,2]
[346165377,1734762659806,-500.0,0.00021941,2]
[346165378,1734762659816,-651.48,0.00021941,2]
[346165379,1734762659825,-1169.52,0.00021941,2]
[346165380,1734762659835,-511.96,0.00021941,2]
[346165381,1734762659844,-1404.37,0.00021941,2]
[346165382,1734762659854,-857.24,0.00021941,2]
[346165383,1734762659863,-623.31,0.00021941,2]
[346165384,1734762659873,-500.0,0.00021941,2]
[346165385,1734762659884,-500.0,0.00021941,2]
[346165386,1734762659895,-717.36,0.00021941,2]
[346165387,1734762659904,-500.0,0.00021941,2]
[346165388,1734762659914,-727.07,0.00021941,2]
[346165389,1734762659925,-500.0,0.00021941,2]
[346165390,1734762659934,-1561.63,0.00021941,2]
[346165391,1734762659944,-608.09,0.00021941,2]
[346165392,1734762659953,-500.0,0.00021941,2]
[346165393,1734762659963,-152.502649,0.00021941,2]
[346165394,1734762659973,-795.08,0.00021941,2]
[346165395,1734762659983,-1607.753683,0.00021941,2]
[346165396,1734762659992,-500.0,0.00021941,2]
[346165397,1734762660001,-572.43,0.00021941,2]
[346165398,1734762660011,-1328.89,0.00021941,2]
[346165399,1734762660020,-500.0,0.00021941,2]
[346165400,1734762660032,-759.82,0.00021941,2]
[346165401,1734762660041,-500.0,0.00021941,2]
[346165402,1734762660051,-2471.688251,0.00021941,2]
[346165403,1734762660061,-2334.14,0.00021941,2]
[346165404,1734762660071,-1192.55,0.00021941,2]
[346165405,1734762660080,-663.59,0.00021941,2]
[346165406,1734762660090,-500.0,0.00021941,2]
[346165407,1734762660100,-613.61,0.00021941,2]
[346165408,1734762660109,-1857.4,0.00021941,2]
[346165409,1734762660119,-743.67,0.00021941,2]
[346165410,1734762660129,-612.45,0.00021941,2]
[346165411,1734762660139,-1951.38,0.00021941,2]
[346165412,1734762660149,-950.79,0.00021941,2]
[346165413,1734762660158,-500.0,0.00021941,2]
[346165414,1734762660168,-633.8,0.00021941,2]
[346165415,1734762660178,-735.75,0.00021941,2]
[346165416,1734762660187,-157.253545,0.00021941,2]
[346165417,1734762660197,-2439.59,0.00021941,2]
[346165418,1734762660207,-656.72,0.00021941,2]
[346165419,1734762660216,-1163.17,0.00021941,2]
[346165420,1734762660226,-799.04,0.00021941,2]
[346165421,1734762660236,-983.81,0.00021941,2]
[346165422,1734762660246,-878.92,0.00021941,2]
[346165423,1734762660255,-500.0,0.00021941,2]
[346165424,1734762660265,-1276.64,0.00021941,2]
[346165425,1734762660275,-904.13,0.00021941,2]
[346165426,1734762660287,-1244.02,0.00021941,2]
[346165427,1734762660296,-9383.06,0.00021941,2]
[346165428,1734762660306,-1268.89,0.00021941,2]
[346165429,1734762660315,-1339.5,0.00021941,2]
[346165430,1734762660325,-682.04,0.00021941,2]
[346165431,1734762660334,-542.86360975,0.00021941,2]
[346165432,1734762660344,-1529.55,0.00021941,2]
[346165433,1734762660355,-1674.98,0.00021941,2]
[346165434,1734762660364,-1047.45,0.00021941,2]
[346165435,1734762660374,-989.85,0.00021941,2]
[346165436,1734762660383,-886.98,0.00021941,2]
[346165437,1734762660393,-592.58,0.00021941,2]
[346165438,1734762660403,-933.71,0.00021941,2]
[346165439,1734762660413,-500.0,0.00021941,2]
[346165440,1734762660422,-1944.34,0.00021941,2]
[346165441,1734762660432,-3625.55,0.00021941,2]
[346165442,1734762660443,-500.0,0.00021941,2]
[346165443,1734762660452,-1309.07,0.00021941,2]
[346165444,1734762660462,-500.0,0.00021941,2]
[346165445,1734762660472,-832.32,0.00021941,2]
[346165446,1734762660482,-500.0,0.00021941,2]
[346165447,1734762660491,-500.0,0.00021941,2]
[346165448,1734762660501,-9438.28,0.00021941,2]
[346165449,1734762660511,-500.0,0.00021941,2]
[346165450,1734762660521,-2815.2,0.00021941,2]
[346165451,1734762660532,-2582.69,0.00021941,2]
[346165452,1734762660542,-513.35389525,0.00021941,2]
[346165453,1734762660619,-500.0,0.00021941,2]